[Event "Torneio Nacional Honour 2017-18"]
[Site "Cascais"]
[Date "2018.08.15"]
[Round "6"]
[White "De Moura, Fernando Alves"]
[Black "Santos, Isabel"]
[Result "0-1"]
[ECO "B17"]
[WhiteElo "1814"]
[BlackElo "2005"]
[Annotator "NA RC"]
[PlyCount "54"]
[EventDate "2018.08.11"]
[EventType "tourn"]
[EventCountry "POR"]
[SourceTitle "playchess.com"]
[Source "ChessBase"]
[SourceQuality "1"]
[TimeControl "5400+30"]

{[%evp 15,50,-15,-25,32767,32767,32767,32767,32767,32767,32767,32767,32767,32767,-277,-219,-206,-205,-305,32767,-208,-199,-29999,-195,-29999,-159,-359,-195,-630,-303,-316,162,-29991,32767,-2532,-830,-805,-568]} 1. e4 c6 2. d4 d5 3. Nc3 dxe4 4. Nxe4 Nd7 5. Qe2 e6 6. Nf3 Ngf6 7. Ng3 c5 8. c3 b6 9. Bf4 Nd5 10. Bd2 Be7 11. h4 Bb7 12. Ne4 Rc8 13. Nfg5 cxd4 14. Qf3 (14. Qh5 $17 g6 15. Qf3) 14... Ne5 15. Qg3 dxc3 16. Bxc3 (16. bxc3) (16. Bb5+ $142 Kf8 17. Bxc3 Nxc3 18. Nxc3) 16... Nxc3 17. Nxc3 Nc4 18. Qg4 $2 (18. Bxc4 $19 Rxc4 19. Qe5) 18... Bxg5 $2 (18... Qd2# {mates}) 19. hxg5 $2 (19. Qxg5 $19 Qxg5 20. hxg5) 19... Nxb2 $2 (19... Qd2# {mates}) 20. g6 $2 (20. Bb5+ $17 Ke7 21. Rh3) 20... fxg6 {[#]} (20... Qf6 $142 21. Bb5+ Kf8) 21. Ne4 $2 (21. Qxg6+ $1 {[%mdl 512]} hxg6 22. Rxh8+ Ke7 23. Rxd8 Rxd8 24. f3) 21... Bxe4 (21... O-O $142 22. Qxe6+ Rf7) 22. Qxe4 Qd5 23. Qb1 Qe5+ 24. Be2 O-O 25. Kf1 Nc4 $19 26. Bxc4 Rxc4 27. Qd1 Qb2 0-1

[Event "Torneio Nacional Honour 2017-18"]
[Site "Cascais"]
[Date "2018.08.15"]
[Round "7"]
[White "Santos, Isabel"]
[Black "Godinho Marques, Pedro"]
[Result "1-0"]
[ECO "D30"]
[WhiteElo "2005"]
[BlackElo "1862"]
[Annotator "NA RC"]
[PlyCount "89"]
[EventDate "2018.08.11"]
[EventType "tourn"]
[EventCountry "POR"]
[SourceTitle "playchess.com"]
[Source "ChessBase"]
[SourceQuality "1"]
[TimeControl "5400+30"]

1. d4 {[%emt 0:14:10]} d5 {[%emt 0:00:00]} 2. c4 {[%emt 0:00:07]} e6 {[%emt 0:00:14]} 3. Nf3 {[%emt 0:00:05]} c5 {[%emt 0:00:29]} 4. cxd5 {[%emt 0:00:10]} exd5 {[%emt 0:00:18]} 5. g3 {[%emt 0:00:10]} Nc6 {[%emt 0:00:59]} 6. Bg2 {[%emt 0:00:39]} Nf6 {[%emt 0:00:18]} 7. O-O {[%emt 0:00:07]} Be7 {[%emt 0:00:46]} 8. Bg5 {[%emt 0:00:37]} Bf5 {[%emt 0:07:29]} 9. Nc3 {[%emt 0:01:21]} O-O {[%emt 0:00:30]} 10. Rc1 {[%emt 0:07:26]} c4 {[%emt 0:11:14]} 11. Ne5 {[%emt 0:08:36] LiveBook: 5 Games} Be6 {[%emt 0:14:45]} 12. Nxc4 {[%emt 0:14:38] D34: Damengambit (Tarrasch-Verteidigung, Hauptvariante)} (12. Nxc6 bxc6 13. Bf4 Nh5 14. Be3 Rb8 15. Qd2 Bb4 16. Qc2 Qd7 17. Rfd1 Bh3 18. Bf3 Bg4 19. Bxg4 Qxg4 {0-1 (28) Puntier Andujar,F (2094)-Benitez Pacheco,A (2168) Santo Domingo DOM 2016}) 12... dxc4 {[%emt 0:21:24]} 13. Bxf6 {[%emt 0:00:03]} Bxf6 {[%emt 0:01:31]} 14. d5 {[%emt 0:00:04]} Bxd5 $146 {[%emt 0:09:56]} ({Vorgänger:} 14... Bxc3 15. Rxc3 Qb6 16. dxe6 Qxb2 17. exf7+ Kh8 18. Rxc4 Qxa2 19. Qc2 Qxc2 20. Rxc2 {½-½ (40) Stefan,O-Jankovec,I Zvolen 1963}) 15. Bxd5 {[%emt 0:01:59]} Na5 {[%emt 0:00:27]} 16. Bg2 {[%emt 0:03:01]} Rc8 {[%emt 0:05:27]} 17. Qc2 {[%emt 0:02:48]} g6 {[%emt 0:06:33]} 18. Rfd1 {[%emt 0:00:41]} Qe8 {[%emt 0:01:36]} 19. Ne4 {[%emt 0:01:43]} Qe5 {[%emt 0:02:09] [#]} 20. Nxf6+ $2 {[%emt 0:03:25]} (20. Rd5 $1 $18 {[%mdl 512] and the rest is easy.}) 20... Qxf6 {[%emt 0:00:06]} 21. Rd7 {[%emt 0:00:04]} Rcd8 {[%emt 0:03:28]} 22. Rcd1 {[%emt 0:00:48]} Rxd7 {[%emt 0:00:43]} 23. Rxd7 {[%emt 0:00:07]} Rd8 {[%emt 0:02:29]} 24. Qd2 {[%emt 0:00:19]} Rxd7 {[%emt 0:04:43]} 25. Qxd7 {[%emt 0:00:02]} Kg7 {[%emt 0:00:56]} 26. Bd5 {[%emt 0:04:54]} ({Don't do} 26. Bxb7 Nxb7 27. Qxb7 Qe5 $16) 26... Nc6 {[%emt 0:02:22]} (26... Qf5 $142 27. Qxf5 gxf5) 27. Qxb7 {[%emt 0:01:17]} Ne5 {[%emt 0:01:34]} (27... Nd8 $142 28. Qc7 (28. Qxa7 Qxb2 29. Kg2 Qe5 $16) 28... Ne6 29. Qxc4 Nd4) 28. Qxa7 {[%emt 0:01:31]} Nc6 {[%emt 0:01:01]} 29. Bxc6 {[%emt 0:01:50]} (29. Qb6 $142) 29... Qxc6 {[%emt 0:00:28]} 30. Qd4+ $18 {[%emt 0:00:05]} Kh6 {[%emt 0:00:32]} 31. h4 {[%emt 0:00:53]} f5 {[%emt 0:00:27]} 32. f3 {[%emt 0:02:00]} Kh5 {[%emt 0:00:34]} 33. Kg2 {[%emt 0:01:40]} Kh6 {[%emt 0:00:09]} 34. Qe3+ {[%emt 0:01:07]} Kg7 {[%emt 0:00:11]} 35. Qc3+ {[%emt 0:00:05]} Kh6 {[%emt 0:00:16]} 36. b3 {[%emt 0:00:21]} Qa6 {[%emt 0:00:08]} 37. Qxc4 {[%emt 0:00:34]} Qxa2 {[%emt 0:00:16]} 38. Qf4+ {[%emt 0:00:37]} Kg7 {[%emt 0:00:10]} 39. Qe5+ {[%emt 0:00:10]} Kh6 {[%emt 0:00:10]} 40. b4 {[%emt 0:00:06]} Qa6 {[%emt 0:01:55]} 41. b5 {[%emt 0:00:13]} Qb6 {[%emt 0:00:35]} 42. Qb2 {[%emt 0:04:08]} Kh5 {[%emt 0:01:09]} 43. Qg7 {[%emt 0:00:10]} h6 {[%emt 0:00:32]} 44. Qe5 {[%emt 0:00:17]} g5 {[%emt 0:00:23]} 45. Qe8+ {[%emt 0:00:08]} 1-0

[Event "Torneio Nacional Honour 2017-18"]
[Site "Cascais"]
[Date "2018.08.15"]
[Round "7"]
[White "Lavrador, Rodolfo M Mascarenh"]
[Black "Guia, Artur Solovyov Eloy"]
[Result "1-0"]
[ECO "C84"]
[WhiteElo "1859"]
[BlackElo "1818"]
[Annotator "NA RC"]
[PlyCount "155"]
[EventDate "2018.08.11"]
[EventType "tourn"]
[EventCountry "POR"]
[SourceTitle "playchess.com"]
[Source "ChessBase"]
[SourceQuality "1"]
[TimeControl "5400+30"]

1. e4 {[%emt 0:00:00]} e5 {[%emt 0:00:00]} 2. Nf3 {[%emt 0:00:00]} Nc6 {[%emt 0:00:00]} 3. Bb5 {[%emt 0:00:00]} a6 {[%emt 0:00:00]} 4. Ba4 {[%emt 0:00:00]} Nf6 {[%emt 0:00:00]} 5. O-O {[%emt 0:00:21]} Be7 {[%emt 0:00:09]} 6. c3 {[%emt 0:00:36]} b5 {[%emt 0:00:08]} 7. Bc2 {[%emt 0:00:11]} d6 {[%emt 0:00:14]} 8. h3 {[%emt 0:00:13]} O-O {[%emt 0:00:07]} 9. Re1 {[%emt 0:00:29]} Na5 {[%emt 0:00:07] C87: Closed Ruy Lopez: Steinitz-type lines after 6 Re1 d6} (9... Bb7 10. d4 exd4 11. cxd4 Nb4 12. Bb3 c5 13. a3 Nc6 14. Nc3 Nxd4 15. Nxd4 cxd4 16. Qxd4 Nd7 17. Nd5 Nc5 18. Ba2 Bxd5 19. Qxd5 {1-0 (76) Anand,V (2752)-Sokolov,I (2647) Prague 2002 CBM 089 [Anand,V]}) 10. d4 {[%emt 0:01:25]} exd4 {[%emt 0:00:45]} 11. cxd4 {[%emt 0:00:16]} c5 {[%emt 0:00:27]} 12. dxc5 {[%emt 0:02:03]} dxc5 {[%emt 0:00:05]} 13. Qxd8 {[%emt 0:00:58]} Rxd8 {[%emt 0:00:11]} 14. Nc3 $146 {[%emt 0:00:17]} ({Predecessor:} 14. Bf4 Nc6 15. a3 Be6 16. Nc3 Nd4 17. Bd1 {1-0 (35) Tan,J-Meszaros,T St Lorenzo 1995}) 14... Nc6 {[%emt 0:00:33]} 15. Bf4 {[%emt 0:03:00]} Nb4 {[%emt 0:01:12]} 16. Bb1 {[%emt 0:00:48]} Bb7 {[%emt 0:00:41]} 17. a3 {[%emt 0:00:23]} Nd3 {[%emt 0:00:24]} 18. Bxd3 {[%emt 0:00:31]} Rxd3 {[%emt 0:00:16]} 19. Ne5 {[%emt 0:05:05]} Rd4 {[%emt 0:01:34]} 20. f3 {[%emt 0:01:03]} Re8 {[%emt 0:01:35]} 21. Ne2 {[%emt 0:03:07]} Rdd8 {[%emt 0:00:14]} 22. Red1 {[%emt 0:01:08]} Rxd1+ {[%emt 0:02:21]} 23. Rxd1 {[%emt 0:00:10]} Rd8 {[%emt 0:00:41]} 24. Rxd8+ {[%emt 0:00:36]} Bxd8 {[%emt 0:00:05]} 25. Kf2 {[%emt 0:00:27]} Nh5 {[%emt 0:02:21]} 26. Be3 {[%emt 0:01:19]} c4 {[%emt 0:02:11]} 27. Ng4 {[%emt 0:09:55]} Nf6 {[%emt 0:00:47]} 28. Bd4 {[%emt 0:02:21]} Nxg4+ {[%emt 0:00:24]} 29. hxg4 {[%emt 0:00:09]} Bg5 {[%emt 0:01:44]} 30. f4 {[%emt 0:00:48]} Bd8 {[%emt 0:00:10]} 31. Ke3 {[%emt 0:00:32]} g6 {[%emt 0:00:44]} 32. g3 {[%emt 0:00:35]} Kf8 {[%emt 0:00:06]} 33. Bc5+ {[%emt 0:01:07]} Ke8 {[%emt 0:00:26]} 34. g5 {[%emt 0:05:05]} Kd7 {[%emt 0:01:23]} 35. Nd4 {[%emt 0:01:03]} Ba8 {[%emt 0:02:32]} 36. Nf3 {[%emt 0:01:58]} Bc7 {[%emt 0:01:03]} 37. Bd4 {[%emt 0:01:13]} Ke6 {[%emt 0:03:10]} 38. g4 {[%emt 0:02:21]} Bb7 {[%emt 0:01:02]} 39. f5+ $11 {[%emt 0:00:28]} Ke7 {[%emt 0:01:15]} 40. Bc5+ {[%emt 0:07:24]} Kd7 {[%emt 0:01:31]} 41. Bd4 {[%emt 0:01:30]} Ke7 {[%emt 0:01:23]} 42. Nd2 {[%emt 0:01:09]} Bg3 {[%emt 0:00:52]} 43. Bc3 {[%emt 0:02:45]} Kd6 {[%emt 0:02:13]} 44. Bb4+ {[%emt 0:00:58]} Kd7 {[%emt 0:00:23]} 45. a4 {[%emt 0:01:04]} Be1 {[%emt 0:00:36]} 46. axb5 {[%emt 0:00:52]} axb5 {[%emt 0:00:16]} 47. Bc3 {[%emt 0:00:32]} Bc6 {[%emt 0:04:52]} 48. Nf3 {[%emt 0:01:11]} Bg3 {[%emt 0:05:10]} 49. Be5 {[%emt 0:01:20]} Bxe5 {[%emt 0:06:29]} 50. Nxe5+ {[%emt 0:00:12]} Kd6 {[%emt 0:00:28]} 51. Nxf7+ {[%emt 0:00:21]} Kc5 {[%emt 0:01:55]} 52. e5 {[%emt 0:01:41]} b4 {[%emt 0:00:21]} 53. Kd2 {[%emt 0:00:49]} Kd4 {[%emt 0:02:01]} 54. e6 {[%emt 0:01:17]} c3+ {[%emt 0:03:34]} 55. bxc3+ {[%emt 0:00:52]} bxc3+ {[%emt 0:00:10]} 56. Kc1 {[%emt 0:00:22]} Ke4 {[%emt 0:04:11]} 57. f6 {[%emt 0:00:35]} Kd5 {[%emt 0:00:34]} 58. Nd8 {[%emt 0:02:01]} Kd6 {[%emt 0:00:52]} 59. Nxc6 {[%emt 0:00:16]} Kxe6 {[%emt 0:00:15]} 60. Nd4+ {[%emt 0:00:32]} Kf7 {[%emt 0:00:15]} 61. Nf3 {[%emt 0:01:04]} h6 {[%emt 0:00:32]} 62. gxh6 {[%emt 0:00:27]} Kxf6 {[%emt 0:00:05]} 63. g5+ {[%emt 0:00:24]} Kf7 {[%emt 0:00:28]} 64. Kc2 {[%emt 0:00:09]} Kg8 {[%emt 0:00:06]} 65. Kxc3 {[%emt 0:00:14]} Kh7 {[%emt 0:00:07]} 66. Kd4 {[%emt 0:00:16]} Kg8 {[%emt 0:00:15]} 67. Ke5 {[%emt 0:00:07]} Kf7 {[%emt 0:00:11]} 68. Nh4 {[%emt 0:00:18]} Kg8 {[%emt 0:00:08]} 69. Nxg6 {[%emt 0:00:20]} Kh7 {[%emt 0:00:02]} 70. Nf4 {[%emt 0:00:31]} Kg8 {[%emt 0:00:08]} 71. g6 {[%emt 0:00:33]} Kf8 {[%emt 0:00:06]} 72. Kf6 {[%emt 0:01:26]} Kg8 {[%emt 0:00:13]} 73. h7+ {[%emt 0:02:09]} Kh8 {[%emt 0:00:06]} 74. g7+ {[%emt 0:00:25]} Kxh7 {[%emt 0:00:05]} 75. Kf7 {[%emt 0:00:24]} Kh6 {[%emt 0:00:06]} 76. Ne6 {[%emt 0:00:48]} Kh7 {[%emt 0:00:08]} 77. g8=Q+ {[%emt 0:00:12]} Kh6 {[%emt 0:00:10]} 78. Qg6# 1-0

[Event "Torneio Nacional Honour 2017-18"]
[Site "Cascais"]
[Date "2018.08.15"]
[Round "7"]
[White "Sa, Claudio Simao Carva"]
[Black "Horta, Antonio Mauricio Ri"]
[Result "1-0"]
[ECO "B00"]
[WhiteElo "1790"]
[BlackElo "1950"]
[Annotator "NA RC"]
[PlyCount "67"]
[EventDate "2018.08.11"]
[EventType "tourn"]
[EventCountry "POR"]
[SourceTitle "playchess.com"]
[Source "ChessBase"]
[SourceQuality "1"]
[TimeControl "5400+30"]

1. e4 {[%emt 0:00:00]} d6 {[%emt 0:00:00]} 2. Nc3 {[%emt 0:00:00]} Nf6 {[%emt 0:00:52]} 3. f4 {[%emt 0:01:00]} g6 {[%emt 0:01:03]} 4. Nf3 {[%emt 0:00:25]} Bg7 {[%emt 0:00:22]} 5. Bc4 {[%emt 0:00:26]} O-O {[%emt 0:00:34]} 6. d3 {[%emt 0:00:13]} c6 {[%emt 0:01:17]} 7. O-O {[%emt 0:00:23]} Nbd7 {[%emt 0:01:33] B07: Pirc Defence: Miscellaneous Systems} (7... a5 8. a4 Na6 9. Kh1 d5 10. Bxa6 Rxa6 11. Qe1 Bg4 12. e5 Ne8 13. Qh4 Bc8 14. Bd2 Nc7 15. Rae1 {0-1 (36) Ermeni,A (2247)-Morozov,N (2467) Heraklio 2017}) 8. Qe1 {[%emt 0:00:31]} b5 {[%emt 0:01:06]} 9. Bb3 {[%emt 0:00:13]} Nc5 {[%emt 0:00:50]} 10. Qh4 {[%emt 0:04:03]} Nxb3 {[%emt 0:00:51]} 11. axb3 {[%emt 0:03:17]} Nd7 $146 {[%emt 0:15:58]} ({Predecessor:} 11... Bg4 12. f5 Bxf3 13. Rxf3 Nd7 14. Rh3 Nf6 15. Bh6 {1-0 (23) Feller,S (2080)-Troubat,N (1800) Aurec 2002}) 12. f5 {[%emt 0:03:27]} Ne5 {[%emt 0:17:21]} ({Better is} 12... e5 $14) 13. Bh6 {[%emt 0:11:09]} f6 {[%emt 0:06:30]} 14. Nxe5 {[%emt 0:08:49]} dxe5 {[%emt 0:00:57]} 15. g4 {[%emt 0:18:48]} g5 {[%emt 0:03:53]} 16. Qh3 {[%emt 0:01:00]} Rf7 {[%emt 0:00:14]} 17. Bxg7 {[%emt 0:01:12]} Rxg7 {[%emt 0:00:01]} 18. Ne2 {[%emt 0:00:54]} Bd7 {[%emt 0:03:02]} 19. Qe3 {[%emt 0:01:50]} Qc7 {[%emt 0:00:52]} 20. Ng3 {[%emt 0:06:14]} Be8 {[%emt 0:00:16]} 21. Ra6 {[%emt 0:04:03]} c5 {[%emt 0:02:58]} 22. Rfa1 {[%emt 0:00:36]} Kh8 {[%emt 0:00:41]} 23. b4 {[%emt 0:00:43]} cxb4 {[%emt 0:00:56]} 24. Rxa7 {[%emt 0:02:12]} Rxa7 {[%emt 0:00:21]} 25. Rxa7 {[%emt 0:00:31]} Qxc2 {[%emt 0:00:11]} 26. Ra8 {[%emt 0:01:24]} Rg8 $11 {[%emt 0:00:23]} 27. Ra7 {[%emt 0:02:32]} Qxb2 {[%emt 0:26:16]} 28. Rxe7 {[%emt 0:02:10]} Qd4 {[%emt 0:03:06]} 29. Qxd4 {[%emt 0:04:04]} exd4 {[%emt 0:00:01]} 30. Nf1 {[%emt 0:01:12]} Rf8 {[%emt 0:03:56]} 31. Nd2 {[%emt 0:00:48]} Bf7 {[%emt 0:00:10]} 32. Rb7 {[%emt 0:00:21]} Rc8 {[%emt 0:00:37]} 33. Rxf7 {[%emt 0:06:05]} Rc2 {[%emt 0:00:22]} 34. Nb3 {[%emt 0:00:44]} 1-0

[Event "Torneio Nacional Honour 2017-18"]
[Site "Cascais"]
[Date "2018.08.15"]
[Round "7"]
[White "Santos, Ruben Jose Melo"]
[Black "De Moura, Fernando Alves"]
[Result "1-0"]
[ECO "A58"]
[WhiteElo "1718"]
[BlackElo "1814"]
[Annotator "NA RC"]
[PlyCount "51"]
[EventDate "2018.08.11"]
[EventType "tourn"]
[EventCountry "POR"]
[SourceTitle "playchess.com"]
[Source "ChessBase"]
[SourceQuality "1"]
[TimeControl "5400+30"]

1. d4 {[%emt 0:00:00]} Nf6 {[%emt 0:01:25]} 2. c4 {[%emt 0:00:00]} c5 {[%emt 0:00:13]} 3. d5 {[%emt 0:00:00]} b5 {[%emt 0:00:11]} 4. cxb5 {[%emt 0:00:00]} a6 {[%emt 0:00:08]} 5. bxa6 {[%emt 0:00:24]} Bxa6 {[%emt 0:00:10]} 6. Nc3 {[%emt 0:00:02]} d6 {[%emt 0:00:20]} 7. g3 {[%emt 0:01:03]} g6 {[%emt 0:00:11]} 8. Bg2 {[%emt 0:00:04]} Bg7 {[%emt 0:00:16]} 9. e4 {[%emt 0:00:18]} Nbd7 {[%emt 0:00:13]} 10. f4 {[%emt 0:00:07]} O-O {[%emt 0:06:08]} 11. Nge2 {[%emt 0:00:02]} Rb8 {[%emt 0:07:38]} 12. O-O {[%emt 0:04:05]} Qc7 {[%emt 0:11:25]} 13. Rf3 {[%emt 0:01:06]} Qa7 {[%emt 0:14:20]} 14. Rb1 {[%emt 0:00:45]} Ng4 {[%emt 0:02:17]} 15. Bh3 {[%emt 0:03:34]} h5 {[%emt 0:04:46]} 16. f5 {[%emt 0:01:17]} Nde5 {[%emt 0:10:52]} 17. Bxg4 {[%emt 0:01:48]} hxg4 {[%emt 0:01:18]} 18. Rf2 {[%emt 0:01:52]} Nd3 {[%emt 0:11:31]} 19. Be3 {[%emt 0:00:03]} Nxf2 {[%emt 0:01:31]} 20. Kxf2 {[%emt 0:00:03]} gxf5 {[%emt 0:11:33]} 21. exf5 {[%emt 0:00:02]} Qd7 {[%emt 0:00:27]} 22. Qc2 {[%emt 0:01:22]} e6 {[%emt 0:01:57]} 23. f6 {[%emt 0:00:49]} Bxf6 {[%emt 0:00:15]} 24. Ne4 {[%emt 0:00:03]} Bg7 {[%emt 0:01:56]} 25. Ng5 {[%emt 0:01:35]} exd5 {[%emt 0:05:44]} 26. Qh7# {[%emt 0:00:28]} 1-0

[Event "Torneio Nacional Honour 2017-18"]
[Site "Cascais"]
[Date "2018.08.15"]
[Round "7"]
[White "Goncalves, Carlos Manuel M"]
[Black "Santos, Jose Barria"]
[Result "0-1"]
[ECO "A05"]
[WhiteElo "1645"]
[BlackElo "2062"]
[Annotator "NA RC"]
[PlyCount "96"]
[EventDate "2018.08.11"]
[EventType "tourn"]
[EventCountry "POR"]
[SourceTitle "playchess.com"]
[Source "ChessBase"]
[SourceQuality "1"]
[TimeControl "5400+30"]

1. Nf3 {[%emt 0:00:00]} Nf6 {[%emt 0:00:00]} 2. g3 {[%emt 0:00:00]} d6 {[%emt 0:00:00]} 3. Bg2 {[%emt 0:00:03]} Nbd7 {[%emt 0:00:04] A05: Réti Opening: 1 Nf3 Nf6} (3... e5 4. d3 Be7 5. c4 O-O 6. Nc3 c5 7. O-O Nc6 8. a3 h6 9. b4 cxb4 10. Nd5 bxa3 11. Nxe7+ Qxe7 12. Bxa3 Rd8 13. Qb3 Be6 14. Rfb1 Rab8 15. Nd2 Nd4 16. Qd1 {0-1 (37) Bures,J (2406)-Simacek,P (2490) Ceske Budejovice 2018}) 4. O-O {[%emt 0:00:17]} e5 {[%emt 0:00:05]} 5. d3 {[%emt 0:00:12]} Be7 {[%emt 0:00:09]} 6. e4 {[%emt 0:01:44]} O-O {[%emt 0:00:33]} 7. Nbd2 {[%emt 0:01:07]} c6 {[%emt 0:00:05]} 8. Re1 {[%emt 0:00:58]} Qc7 {[%emt 0:00:15]} 9. Nf1 {[%emt 0:00:31]} Re8 $146 {[%emt 0:03:36]} ({Predecessor:} 9... h6 10. h4 Nh7 {0-1 (49) Cardozo,C-Guzman,C (2041) Bogota 2008}) 10. a3 {[%emt 0:01:28]} d5 {[%emt 0:02:56]} 11. exd5 {[%emt 0:00:58]} cxd5 {[%emt 0:01:28]} 12. Bg5 {[%emt 0:05:01]} h6 {[%emt 0:05:35]} 13. Bd2 {[%emt 0:02:07]} Bf8 {[%emt 0:01:37]} 14. h4 {[%emt 0:01:57]} Nb6 {[%emt 0:08:01]} 15. N3h2 {[%emt 0:01:50]} Bd7 {[%emt 0:05:47]} 16. Ba5 {[%emt 0:09:49]} d4 {[%emt 0:04:54]} 17. Nd2 {[%emt 0:02:24]} Qb8 {[%emt 0:04:44]} 18. Bxb6 {[%emt 0:02:12]} axb6 {[%emt 0:00:05]} 19. Nc4 {[%emt 0:00:12]} Qc7 {[%emt 0:00:58]} 20. Nf3 {[%emt 0:00:46]} Bg4 {[%emt 0:03:21]} 21. Qd2 {[%emt 0:05:41] [#]} (21. Ncd2 $17 {might work better.}) 21... Bxf3 $1 {[%emt 0:00:54]} 22. Bxf3 {[%emt 0:00:52]} b5 {[%emt 0:00:15]} 23. Nxe5 {[%emt 0:00:47]} Rxe5 {[%emt 0:00:11]} 24. Rxe5 {[%emt 0:00:25]} Qxe5 {[%emt 0:00:08]} 25. Bxb7 {[%emt 0:00:36]} Re8 {[%emt 0:00:22]} 26. Bc6 {[%emt 0:00:25]} Re6 {[%emt 0:00:43]} 27. Bg2 {[%emt 0:01:12]} Qe2 {[%emt 0:01:42]} 28. Qxe2 {[%emt 0:03:10]} Rxe2 {[%emt 0:00:18]} 29. Rc1 {[%emt 0:00:07]} Bd6 {[%emt 0:01:15]} 30. Kf1 {[%emt 0:02:17]} Re5 {[%emt 0:00:32]} 31. b4 {[%emt 0:02:29]} Nd5 {[%emt 0:04:08]} 32. c4 {[%emt 0:04:20]} dxc3 {[%emt 0:01:18]} 33. Bxd5 {[%emt 0:00:24]} Rxd5 {[%emt 0:00:07]} 34. Rxc3 {[%emt 0:00:05]} Kf8 {[%emt 0:00:39]} 35. f4 {[%emt 0:02:22]} Ke7 {[%emt 0:00:22]} 36. Ke2 {[%emt 0:00:25]} Kd7 {[%emt 0:00:11]} 37. Ke3 {[%emt 0:00:44]} f5 {[%emt 0:00:32]} 38. d4 {[%emt 0:02:53]} Be7 {[%emt 0:00:52]} 39. Rd3 {[%emt 0:01:41]} Bf6 {[%emt 0:01:04]} 40. Rd1 {[%emt 0:00:19]} Rd6 {[%emt 0:00:15]} 41. Rd2 {[%emt 0:05:13]} Re6+ {[%emt 0:02:20]} 42. Kd3 {[%emt 0:00:31]} Ra6 {[%emt 0:00:27]} 43. Ra2 $19 {[%emt 0:00:32]} Kd6 {[%emt 0:00:37]} 44. a4 {[%emt 0:00:30]} Rxa4 {[%emt 0:00:13]} 45. Rxa4 {[%emt 0:00:07]} bxa4 {[%emt 0:00:14]} 46. Kc4 {[%emt 0:00:55]} a3 {[%emt 0:00:04]} 47. Kb3 {[%emt 0:00:12]} Bxd4 {[%emt 0:00:06]} 48. Kxa3 {[%emt 0:00:15]} Bf2 {[%emt 0:00:04]} 0-1

[Event "Torneio Nacional Honour 2017-18"]
[Site "Cascais"]
[Date "2018.08.16"]
[Round "8"]
[White "Horta, Antonio Mauricio Ri"]
[Black "Santos, Jose Barria"]
[Result "0-1"]
[ECO "A20"]
[WhiteElo "1950"]
[BlackElo "2062"]
[Annotator "NA RC"]
[PlyCount "68"]
[EventDate "2018.08.11"]
[EventType "tourn"]
[EventCountry "POR"]
[SourceTitle "playchess.com"]
[Source "ChessBase"]
[SourceQuality "1"]
[TimeControl "5400+30"]

{[%evp 15,55,0,32767,19,0,16,17,16,33,0,12,-47,16,-38,19,-24,-25,-25,-21,-26,-35,-34,-11,-22,-8,-259,-219,-505,-518,-474,-502,-751,-832,-760,-876,32767,32767,-1165,-1029,-1239,-1000,-897]} 1. c4 {[%emt 0:01:22]} e5 {[%emt 0:00:00]} 2. g3 {[%emt 0:00:21]} Nc6 {[%emt 0:00:00]} 3. Bg2 {[%emt 0:00:13]} Nf6 {[%emt 0:00:00]} 4. Nc3 {[%emt 0:00:40]} Bc5 {[%emt 0:00:02]} 5. Nf3 {[%emt 0:00:09]} d6 {[%emt 0:00:10]} 6. O-O {[%emt 0:00:09]} O-O {[%emt 0:00:07]} 7. d3 {[%emt 0:01:57]} h6 {[%emt 0:00:04]} 8. Na4 {[%emt 0:12:10]} Bb6 {[%emt 0:00:47]} 9. Nxb6 {[%emt 0:00:35] A29: English Opening: Four Knights Variation with 4 g3} axb6 {[%emt 0:00:07]} 10. b3 {[%emt 0:04:05] LiveBook: 7 Games} Re8 {[%emt 0:04:10]} 11. Bb2 {[%emt 0:02:03]} Bf5 {[%emt 0:10:04]} 12. d4 $146 {[%emt 0:07:00]} ({Predecessor:} 12. Nh4 Bh7 13. e4 Nd7 14. a3 Nc5 15. Nf5 Bxf5 16. exf5 Qg5 {½-½ (29) Speelman,J (2610)-Sadler,M (2465) London 1990}) 12... e4 {[%emt 0:04:09]} 13. Ne1 {[%emt 0:01:42]} Qd7 {[%emt 0:02:15]} 14. Nc2 {[%emt 0:02:31]} (14. d5 $11 Ne5 15. Nc2) 14... Bh3 {[%emt 0:02:16]} (14... d5 $15) 15. Ne3 {[%emt 0:02:26]} Bxg2 {[%emt 0:01:07]} 16. Kxg2 {[%emt 0:00:08]} d5 {[%emt 0:03:05]} 17. Qd2 {[%emt 0:03:02]} Ne7 {[%emt 0:07:44]} 18. h3 {[%emt 0:11:24]} Nh5 {[%emt 0:18:14]} 19. Ng4 {[%emt 0:10:18]} Qe6 {[%emt 0:00:13]} 20. f4 $2 {[%emt 0:09:40]} (20. Qc2 $11 {and White stays safe.}) 20... dxc4 {[%emt 0:18:39]} 21. f5 $2 {[%emt 0:02:50]} (21. bxc4 Nf5 22. Rg1) 21... Nxf5 {[%emt 0:11:25]} 22. Rxf5 {[%emt 0:13:34]} Qxf5 {[%emt 0:00:06]} 23. Rf1 {[%emt 0:03:53]} (23. bxc4 $142 e3 24. Qd3 Qxd3 25. exd3) 23... Qg6 {[%emt 0:00:34]} 24. Qc3 {[%emt 0:04:35]} Rxa2 {[%emt 0:01:42]} 25. d5 {[%emt 0:01:00]} f5 {[%emt 0:06:53]} 26. Nxh6+ {[%emt 0:03:11]} Qxh6 {[%emt 0:01:57]} 27. Rxf5 {[%emt 0:00:13]} Nf6 {[%emt 0:00:24]} 28. h4 $19 {[%emt 0:00:42]} e3 {[%emt 0:02:38]} 29. Rg5 {[%emt 0:00:16]} Re7 {[%emt 0:02:05]} 30. d6 {[%emt 0:00:35]} cxd6 {[%emt 0:00:39]} 31. Qxc4+ {[%emt 0:01:38]} d5 {[%emt 0:00:34]} 32. Rxd5 {[%emt 0:00:45]} Nxd5 {[%emt 0:00:11]} 33. Qc8+ {[%emt 0:00:03]} Kf7 {[%emt 0:00:28]} 34. Qf5+ {[%emt 0:00:09]} Nf6 {[%emt 0:00:02]} 0-1